[Event "Early-Titled-Tuesday-Blitz-July-09-2024"]
[Site "Chess.com"]
[Date "2024.07.09"]
[Round "7"]
[White "Gnechko_Ruslan"]
[Black "lildoggo2007"]
[Result "0-1"]
[WhiteElo "2512"]
[BlackElo "2424"]
[TimeControl "180+1"]
[EndTime "9:17:53 PDT"]
[Termination "lildoggo2007 won by resignation"]

1. e4 {[%clk 0:03:00.9]} 1... c5 {[%clk 0:02:57.5]} 2. Nc3 {[%clk 0:03:00.3]}
2... Nc6 {[%clk 0:02:51.3]} 3. f4 {[%clk 0:03:01.2]} 3... g6 {[%clk 0:02:50.8]}
4. Nf3 {[%clk 0:03:01.9]} 4... Bg7 {[%clk 0:02:51.2]} 5. Bb5 {[%clk 0:03:02.4]}
5... Nd4 {[%clk 0:02:50.6]} 6. a4 {[%clk 0:03:01.3]} 6... a6 {[%clk 0:02:48.2]}
7. Bc4 {[%clk 0:03:01]} 7... e6 {[%clk 0:02:48.3]} 8. e5 {[%clk 0:03:01.2]} 8...
Ne7 {[%clk 0:02:46.9]} 9. Ne4 {[%clk 0:03:01.5]} 9... O-O {[%clk 0:02:43.9]} 10.
c3 {[%clk 0:02:57]} 10... Nxf3+ {[%clk 0:02:43.2]} 11. Qxf3 {[%clk 0:02:56.9]}
11... d5 {[%clk 0:02:33.9]} 12. exd6 {[%clk 0:02:55.7]} 12... Nf5 {[%clk
0:02:34.6]} 13. d3 {[%clk 0:02:50.5]} 13... Nxd6 {[%clk 0:02:32.8]} 14. Nxd6
{[%clk 0:02:50.5]} 14... Qxd6 {[%clk 0:02:32.4]} 15. h4 {[%clk 0:02:51.2]} 15...
Rb8 {[%clk 0:02:28.3]} 16. h5 {[%clk 0:02:50.4]} 16... b5 {[%clk 0:02:28.4]} 17.
axb5 {[%clk 0:02:51.3]} 17... axb5 {[%clk 0:02:28.5]} 18. Bb3 {[%clk 0:02:51.5]}
18... Bb7 {[%clk 0:02:25.6]} 19. Qh3 {[%clk 0:02:49.7]} 19... Rfd8 {[%clk
0:02:11.4]} 20. hxg6 {[%clk 0:02:48.7]} 20... hxg6 {[%clk 0:02:11.9]} 21. Bc2
{[%clk 0:02:42.3]} 21... b4 {[%clk 0:02:06.6]} 22. c4 {[%clk 0:02:39.1]} 22...
b3 {[%clk 0:02:00]} 23. Bb1 {[%clk 0:02:38.4]} 23... Ra8 {[%clk 0:01:50.8]} 24.
Rxa8 {[%clk 0:02:36.9]} 24... Rxa8 {[%clk 0:01:51.7]} 25. Qh7+ {[%clk
0:02:26.5]} 25... Kf8 {[%clk 0:01:51.2]} 26. O-O {[%clk 0:02:27.4]} 26... Qd4+
{[%clk 0:01:43]} 27. Kh2 {[%clk 0:02:25.8]} 27... Ke7 {[%clk 0:01:41.3]} 28.
Qh4+ {[%clk 0:02:22.4]} 28... Bf6 {[%clk 0:01:40.3]} 29. Qg4 {[%clk 0:02:09.4]}
29... Ra1 {[%clk 0:01:27.8]} 30. Qd1 {[%clk 0:01:24.1]} 30... Rxb1 {[%clk
0:01:22.6]} 31. Qxb3 {[%clk 0:01:24.5]} 31... Bc6 {[%clk 0:01:08.5]} 32. Be3
{[%clk 0:01:18.2]} 32... Qxe3 {[%clk 0:00:59.5]} 33. Rxb1 {[%clk 0:01:17.1]}
33... Qxf4+ {[%clk 0:00:59.4]} 34. Kh1 {[%clk 0:01:17.3]} 34... Qh4+ {[%clk
0:00:56.6]} 35. Kg1 {[%clk 0:01:17.6]} 35... Bd4+ {[%clk 0:00:56.4]} 0-1

[Event "Early-Titled-Tuesday-Blitz-July-09-2024"]
[Site "Chess.com"]
[Date "2024.07.09"]
[Round "7"]
[White "alreadybroken23"]
[Black "Likvidator228"]
[Result "0-1"]
[WhiteElo "2672"]
[BlackElo "2572"]
[TimeControl "180+1"]
[EndTime "9:18:03 PDT"]
[Termination "Likvidator228 won by resignation"]

1. d4 {[%clk 0:02:58.7]} 1... f5 {[%clk 0:03:00]} 2. e4 {[%clk 0:02:58.1]} 2...
fxe4 {[%clk 0:02:59]} 3. Nc3 {[%clk 0:02:58.7]} 3... Nf6 {[%clk 0:02:59.4]} 4.
Bg5 {[%clk 0:02:58.1]} 4... e6 {[%clk 0:02:59.5]} 5. Nxe4 {[%clk 0:02:57.4]}
5... Be7 {[%clk 0:03:00.2]} 6. Bxf6 {[%clk 0:02:57.7]} 6... Bxf6 {[%clk
0:03:01.1]} 7. Nf3 {[%clk 0:02:58]} 7... b6 {[%clk 0:03:01.3]} 8. Bd3 {[%clk
0:02:58.3]} 8... Bb7 {[%clk 0:03:01.4]} 9. Qe2 {[%clk 0:02:56]} 9... g6 {[%clk
0:03:01.2]} 10. O-O-O {[%clk 0:02:54.9]} 10... Qe7 {[%clk 0:02:57.7]} 11. h4
{[%clk 0:02:54.6]} 11... Nc6 {[%clk 0:02:55.7]} 12. c3 {[%clk 0:02:52.6]} 12...
O-O-O {[%clk 0:02:55.6]} 13. h5 {[%clk 0:02:47.2]} 13... g5 {[%clk 0:02:55.2]}
14. g3 {[%clk 0:02:43.4]} 14... h6 {[%clk 0:02:54.9]} 15. Kb1 {[%clk 0:02:40.1]}
15... Bg7 {[%clk 0:02:54.8]} 16. Ba6 {[%clk 0:02:39.1]} 16... Rhf8 {[%clk
0:02:53.4]} 17. Bxb7+ {[%clk 0:02:35.3]} 17... Kxb7 {[%clk 0:02:53.6]} 18. Nh2
{[%clk 0:02:27.9]} 18... d5 {[%clk 0:02:50.6]} 19. Nd2 {[%clk 0:02:27.7]} 19...
e5 {[%clk 0:02:51]} 20. dxe5 {[%clk 0:02:27.6]} 20... Qxe5 {[%clk 0:02:49.5]}
21. Rhe1 {[%clk 0:02:27.3]} 21... Qf5+ {[%clk 0:02:46.4]} 22. Ka1 {[%clk
0:02:23.8]} 22... Qxf2 {[%clk 0:02:46.6]} 23. Ng4 {[%clk 0:02:08.8]} 23... Qxg3
{[%clk 0:02:44.4]} 24. Rg1 {[%clk 0:02:07.8]} 24... Qd6 {[%clk 0:02:41.8]} 25.
Nb3 {[%clk 0:02:07.2]} 25... d4 {[%clk 0:02:31.9]} 26. Qc4 {[%clk 0:01:53.6]}
26... Qf4 {[%clk 0:02:23.8]} 27. Nc5+ {[%clk 0:01:48.2]} 27... bxc5 {[%clk
0:01:49.7]} 28. Qb5+ {[%clk 0:01:46.7]} 28... Kc8 {[%clk 0:01:48.3]} 29. Qxc6
{[%clk 0:01:44.9]} 29... Rd6 {[%clk 0:01:38.7]} 30. Qxc5 {[%clk 0:01:41]} 30...
dxc3 {[%clk 0:01:37.1]} 31. Rxd6 {[%clk 0:01:15.9]} 31... cxb2+ {[%clk
0:01:32.1]} 32. Kb1 {[%clk 0:01:15]} 32... Qf1+ {[%clk 0:01:20.5]} 33. Rxf1
{[%clk 0:01:12]} 33... Rxf1+ {[%clk 0:01:20.2]} 34. Kc2 {[%clk 0:01:12.9]} 34...
b1=Q+ {[%clk 0:01:20.1]} 35. Kd2 {[%clk 0:01:13.4]} 35... Qd1+ {[%clk
0:01:11.1]} 36. Ke3 {[%clk 0:01:13.2]} 36... Qxd6 {[%clk 0:01:00]} 37. Qxd6
{[%clk 0:01:12.1]} 37... cxd6 {[%clk 0:01:00.2]} 0-1

[Event "Early-Titled-Tuesday-Blitz-July-09-2024"]
[Site "Chess.com"]
[Date "2024.07.09"]
[Round "7"]
[White "Yan_Dyomin2010"]
[Black "whitemirrorninja"]
[Result "0-1"]
[WhiteElo "2729"]
[BlackElo "2544"]
[TimeControl "180+1"]
[EndTime "9:18:04 PDT"]
[Termination "whitemirrorninja won by resignation"]

1. e4 {[%clk 0:03:00.9]} 1... c5 {[%clk 0:03:00.1]} 2. Nf3 {[%clk 0:02:59.6]}
2... d6 {[%clk 0:03:00.7]} 3. d4 {[%clk 0:02:59.2]} 3... cxd4 {[%clk 0:03:01.6]}
4. Qxd4 {[%clk 0:02:59.4]} 4... e5 {[%clk 0:02:57.8]} 5. Bb5+ {[%clk 0:02:58.8]}
5... Nd7 {[%clk 0:02:49.1]} 6. Qd3 {[%clk 0:02:56.7]} 6... a6 {[%clk 0:02:29.5]}
7. Bxd7+ {[%clk 0:02:54.8]} 7... Qxd7 {[%clk 0:02:21.6]} 8. a4 {[%clk
0:02:50.4]} 8... f5 {[%clk 0:02:14.8]} 9. c4 {[%clk 0:02:29.6]} 9... fxe4 {[%clk
0:02:10.9]} 10. Qxe4 {[%clk 0:02:29.6]} 10... Nf6 {[%clk 0:02:11.6]} 11. Qe2
{[%clk 0:02:30.1]} 11... Be7 {[%clk 0:02:06.6]} 12. Nc3 {[%clk 0:02:29.5]} 12...
O-O {[%clk 0:02:06.4]} 13. Bg5 {[%clk 0:02:29.9]} 13... Nh5 {[%clk 0:02:06.1]}
14. Bxe7 {[%clk 0:02:29]} 14... Nf4 {[%clk 0:01:53.9]} 15. Qf1 {[%clk
0:02:09.6]} 15... Qxe7 {[%clk 0:01:52]} 16. O-O-O {[%clk 0:02:01]} 16... Bg4
{[%clk 0:01:37]} 17. h3 {[%clk 0:01:42.7]} 17... Bh5 {[%clk 0:01:30.6]} 18. g4
{[%clk 0:01:40.9]} 18... Bg6 {[%clk 0:01:28.2]} 19. Ne1 {[%clk 0:01:37]} 19...
b5 {[%clk 0:01:22.6]} 20. cxb5 {[%clk 0:01:36.1]} 20... axb5 {[%clk 0:01:22.6]}
21. Qxb5 {[%clk 0:01:32.9]} 21... Rab8 {[%clk 0:01:12.8]} 22. Qa6 {[%clk
0:01:08.1]} 22... d5 {[%clk 0:01:03.6]} 0-1

[Event "Early-Titled-Tuesday-Blitz-July-09-2024"]
[Site "Chess.com"]
[Date "2024.07.09"]
[Round "7"]
[White "MANOJ_MISHRA123"]
[Black "BillCoe"]
[Result "1-0"]
[WhiteElo "2258"]
[BlackElo "2050"]
[TimeControl "180+1"]
[EndTime "9:18:08 PDT"]
[Termination "MANOJ_MISHRA123 won by resignation"]

1. d4 {[%clk 0:03:00.9]} 1... d5 {[%clk 0:02:59.4]} 2. Nc3 {[%clk 0:02:59.5]}
2... e6 {[%clk 0:02:58.3]} 3. Bf4 {[%clk 0:02:58.8]} 3... c5 {[%clk 0:02:58.3]}
4. e3 {[%clk 0:02:54.9]} 4... cxd4 {[%clk 0:02:57.4]} 5. exd4 {[%clk 0:02:54.7]}
5... Nc6 {[%clk 0:02:57.6]} 6. Nb5 {[%clk 0:02:53.6]} 6... Bb4+ {[%clk
0:02:52.6]} 7. c3 {[%clk 0:02:53.1]} 7... Ba5 {[%clk 0:02:53]} 8. Nd6+ {[%clk
0:02:43.7]} 8... Ke7 {[%clk 0:02:50.8]} 9. Qh5 {[%clk 0:02:34.7]} 9... g6 {[%clk
0:02:41.3]} 10. Qh4+ {[%clk 0:02:29.4]} 10... f6 {[%clk 0:02:41.1]} 11. Nxc8+
{[%clk 0:02:13.2]} 11... Rxc8 {[%clk 0:02:42]} 12. Nf3 {[%clk 0:02:03]} 12...
Bc7 {[%clk 0:02:40.5]} 13. Be3 {[%clk 0:01:58.5]} 13... Kf7 {[%clk 0:02:30.9]}
14. Bd3 {[%clk 0:01:56.8]} 14... h5 {[%clk 0:02:21.1]} 15. g4 {[%clk 0:01:39.3]}
15... Kg7 {[%clk 0:02:03.9]} 16. Rg1 {[%clk 0:01:25.8]} 16... hxg4 {[%clk
0:01:42.5]} 17. Qxg4 {[%clk 0:01:21]} 17... Nge7 {[%clk 0:01:17.5]} 18. Bxg6
{[%clk 0:01:14.9]} 18... Rg8 {[%clk 0:01:11.3]} 19. Bh7+ {[%clk 0:01:02.5]}
19... Kf8 {[%clk 0:01:08.4]} 20. Bxg8 {[%clk 0:01:02.2]} 20... Nxg8 {[%clk
0:01:09.3]} 21. Qxg8+ {[%clk 0:01:00.8]} 21... Ke7 {[%clk 0:01:09.9]} 22. Rg7+
{[%clk 0:00:57.7]} 22... Kd6 {[%clk 0:01:09.6]} 23. Bf4+ {[%clk 0:00:54]} 23...
e5 {[%clk 0:01:09.9]} 24. dxe5+ {[%clk 0:00:53.8]} 24... fxe5 {[%clk 0:01:10.8]}
25. Qxd8+ {[%clk 0:00:45.6]} 25... Rxd8 {[%clk 0:01:08.9]} 26. Nxe5 {[%clk
0:00:39.5]} 26... Nxe5 {[%clk 0:01:05.9]} 27. Bxe5+ {[%clk 0:00:39.7]} 27...
Kxe5 {[%clk 0:01:05]} 28. Rxc7 {[%clk 0:00:40.6]} 1-0

[Event "Early-Titled-Tuesday-Blitz-July-09-2024"]
[Site "Chess.com"]
[Date "2024.07.09"]
[Round "7"]
[White "NovakRatko"]
[Black "marvinguevara"]
[Result "1-0"]
[WhiteElo "2361"]
[BlackElo "2032"]
[TimeControl "180+1"]
[EndTime "9:18:11 PDT"]
[Termination "NovakRatko won by checkmate"]

1. d4 {[%clk 0:03:00.9]} 1... d5 {[%clk 0:02:59.2]} 2. c4 {[%clk 0:03:00.3]}
2... e6 {[%clk 0:02:59.8]} 3. cxd5 {[%clk 0:03:00.4]} 3... exd5 {[%clk
0:02:59.6]} 4. Nc3 {[%clk 0:03:00.7]} 4... c5 {[%clk 0:02:55.9]} 5. dxc5 {[%clk
0:02:59.3]} 5... d4 {[%clk 0:02:55.7]} 6. Na4 {[%clk 0:02:58.6]} 6... b5 {[%clk
0:02:55.1]} 7. cxb6 {[%clk 0:02:58.3]} 7... axb6 {[%clk 0:02:55.7]} 8. b3 {[%clk
0:02:56.2]} 8... Nf6 {[%clk 0:02:53.4]} 9. Nf3 {[%clk 0:02:55.9]} 9... Bb4+
{[%clk 0:02:49.7]} 10. Bd2 {[%clk 0:02:55.9]} 10... Nc6 {[%clk 0:02:37.5]} 11.
Rc1 {[%clk 0:02:53.7]} 11... Bxd2+ {[%clk 0:02:17.5]} 12. Qxd2 {[%clk
0:02:53.4]} 12... Bb7 {[%clk 0:02:16.7]} 13. e3 {[%clk 0:02:52.8]} 13... Ne4
{[%clk 0:01:46.4]} 14. Qc2 {[%clk 0:02:42.8]} 14... Nb4 {[%clk 0:01:35]} 15.
Bb5+ {[%clk 0:02:42]} 15... Kf8 {[%clk 0:01:33.9]} 16. Qc7 {[%clk 0:02:37.9]}
16... Qd5 {[%clk 0:01:06.6]} 17. O-O {[%clk 0:02:23.6]} 17... d3 {[%clk
0:01:00.2]} 18. Nxb6 {[%clk 0:02:23.1]} 18... Qxb5 {[%clk 0:00:51.9]} 19. Qxb7
{[%clk 0:02:18.3]} 19... Qa6 {[%clk 0:00:32.6]} 20. Nd7+ {[%clk 0:02:15.3]}
20... Ke8 {[%clk 0:00:31.2]} 21. Qxe4+ {[%clk 0:02:15.6]} 21... Kxd7 {[%clk
0:00:30.4]} 22. Qxb4 {[%clk 0:02:14.7]} 22... Rhb8 {[%clk 0:00:28.6]} 23. Ne5+
{[%clk 0:02:13.4]} 23... Ke6 {[%clk 0:00:27]} 24. Qf4 {[%clk 0:02:05.7]} 24...
g5 {[%clk 0:00:18.5]} 25. Qxf7+ {[%clk 0:01:46.6]} 25... Kxe5 {[%clk 0:00:17.6]}
26. Rc5+ {[%clk 0:01:45.1]} 26... Kd6 {[%clk 0:00:13.9]} 27. Qd5+ {[%clk
0:01:35.9]} 27... Ke7 {[%clk 0:00:13.2]} 28. Rc7+ {[%clk 0:01:35.9]} 28... Ke8
{[%clk 0:00:08.5]} 29. Qd7+ {[%clk 0:01:35.1]} 29... Kf8 {[%clk 0:00:08.1]} 30.
Qf7# {[%clk 0:01:35.1]} 1-0

[Event "Early-Titled-Tuesday-Blitz-July-09-2024"]
[Site "Chess.com"]
[Date "2024.07.09"]
[Round "7"]
[White "Potosino1970"]
[Black "ilovejokes555"]
[Result "1-0"]
[WhiteElo "2716"]
[BlackElo "2357"]
[TimeControl "180+1"]
[EndTime "9:18:12 PDT"]
[Termination "Potosino1970 won by checkmate"]

1. e4 {[%clk 0:03:00.9]} 1... c5 {[%clk 0:02:59.8]} 2. Nc3 {[%clk 0:02:59.8]}
2... Nc6 {[%clk 0:02:59.1]} 3. Bb5 {[%clk 0:02:59.5]} 3... Nd4 {[%clk 0:02:59]}
4. Bc4 {[%clk 0:02:59.5]} 4... g6 {[%clk 0:02:57]} 5. Nf3 {[%clk 0:02:59.2]}
5... Bg7 {[%clk 0:02:56.7]} 6. Nxd4 {[%clk 0:02:59.2]} 6... cxd4 {[%clk
0:02:56.5]} 7. Qf3 {[%clk 0:02:59.3]} 7... e6 {[%clk 0:02:55.5]} 8. Nb5 {[%clk
0:02:58.8]} 8... d6 {[%clk 0:02:44.8]} 9. Qa3 {[%clk 0:02:58.5]} 9... Bf8 {[%clk
0:02:21]} 10. Nxd4 {[%clk 0:02:57.5]} 10... d5 {[%clk 0:02:18]} 11. Bb5+ {[%clk
0:02:52.7]} 11... Bd7 {[%clk 0:02:17.2]} 12. Qa4 {[%clk 0:02:40.6]} 12... dxe4
{[%clk 0:02:15.6]} 13. O-O {[%clk 0:02:38.7]} 13... Bg7 {[%clk 0:02:04.6]} 14.
Bxd7+ {[%clk 0:02:27.5]} 14... Qxd7 {[%clk 0:02:04.3]} 15. Nb5 {[%clk
0:02:28.1]} 15... Kf8 {[%clk 0:01:45.4]} 16. Qb4+ {[%clk 0:02:24.7]} 16... Ne7
{[%clk 0:01:43.4]} 17. a4 {[%clk 0:02:19.7]} 17... a6 {[%clk 0:01:39.2]} 18. Nc3
{[%clk 0:02:19.1]} 18... f5 {[%clk 0:01:38.2]} 19. d3 {[%clk 0:02:10.9]} 19...
exd3 {[%clk 0:01:35]} 20. Rd1 {[%clk 0:02:08.9]} 20... Kf7 {[%clk 0:01:27.4]}
21. Rxd3 {[%clk 0:02:07.6]} 21... Qc6 {[%clk 0:01:25.5]} 22. Bg5 {[%clk
0:02:06.9]} 22... Bf6 {[%clk 0:00:54.2]} 23. Bxf6 {[%clk 0:02:05.1]} 23... Kxf6
{[%clk 0:00:54.3]} 24. Rd6 {[%clk 0:02:05]} 24... Qc7 {[%clk 0:00:40.2]} 25. Re1
{[%clk 0:02:02.7]} 25... Kf7 {[%clk 0:00:32.2]} 26. Rdxe6 {[%clk 0:01:57.5]}
26... Nc6 {[%clk 0:00:20.2]} 27. Qc4 {[%clk 0:01:57.4]} 27... Kg7 {[%clk
0:00:20]} 28. Nd5 {[%clk 0:01:55.2]} 28... Qf7 {[%clk 0:00:17.5]} 29. Qc3+
{[%clk 0:01:53.3]} 29... Kh6 {[%clk 0:00:16.6]} 30. R1e3 {[%clk 0:01:47]} 30...
Rhd8 {[%clk 0:00:08.1]} 31. Rh3+ {[%clk 0:01:46.2]} 31... Kg5 {[%clk 0:00:07.4]}
32. Qg3# {[%clk 0:01:46]} 1-0

[Event "Early-Titled-Tuesday-Blitz-July-09-2024"]
[Site "Chess.com"]
[Date "2024.07.09"]
[Round "7"]
[White "Kirill_Klukin"]
[Black "HansOnTwitch"]
[Result "0-1"]
[WhiteElo "2922"]
[BlackElo "3132"]
[TimeControl "180+1"]
[EndTime "9:18:14 PDT"]
[Termination "HansOnTwitch won by resignation"]

1. Nf3 {[%clk 0:03:00.9]} 1... d5 {[%clk 0:03:00]} 2. e3 {[%clk 0:02:59.7]} 2...
Nf6 {[%clk 0:02:59.5]} 3. c4 {[%clk 0:03:00]} 3... e6 {[%clk 0:02:59.8]} 4. b3
{[%clk 0:02:58.2]} 4... Bd6 {[%clk 0:02:59.9]} 5. Bb2 {[%clk 0:02:58.7]} 5...
O-O {[%clk 0:03:00.5]} 6. Nc3 {[%clk 0:02:59.1]} 6... Re8 {[%clk 0:03:01.2]} 7.
Qc2 {[%clk 0:02:57.4]} 7... a6 {[%clk 0:02:58.6]} 8. d4 {[%clk 0:02:48]} 8... b6
{[%clk 0:02:53.9]} 9. cxd5 {[%clk 0:02:45.7]} 9... exd5 {[%clk 0:02:53.6]} 10.
g3 {[%clk 0:02:44.4]} 10... Bb7 {[%clk 0:02:44.2]} 11. Bg2 {[%clk 0:02:44.4]}
11... Nbd7 {[%clk 0:02:44.8]} 12. O-O {[%clk 0:02:43.6]} 12... Qe7 {[%clk
0:02:43.9]} 13. Rfe1 {[%clk 0:02:35.6]} 13... Rac8 {[%clk 0:02:43.9]} 14. Rad1
{[%clk 0:02:30.8]} 14... h6 {[%clk 0:02:38.8]} 15. Nh4 {[%clk 0:02:21.2]} 15...
g6 {[%clk 0:02:38.8]} 16. Nf3 {[%clk 0:02:09.8]} 16... Ne4 {[%clk 0:02:36.8]}
17. Nd2 {[%clk 0:02:05.8]} 17... f5 {[%clk 0:02:30.3]} 18. f3 {[%clk 0:02:02]}
18... Nxc3 {[%clk 0:02:27.1]} 19. Bxc3 {[%clk 0:02:01.5]} 19... Nf6 {[%clk
0:02:27.7]} 20. g4 {[%clk 0:01:30.3]} 20... fxg4 {[%clk 0:02:19.2]} 21. Qxg6+
{[%clk 0:01:29.8]} 21... Qg7 {[%clk 0:02:19.7]} 22. Qxg7+ {[%clk 0:00:54.9]}
22... Kxg7 {[%clk 0:02:20.6]} 23. f4 {[%clk 0:00:49]} 23... Re7 {[%clk
0:02:11.4]} 24. Nf1 {[%clk 0:00:46.8]} 24... Rce8 {[%clk 0:02:10.7]} 25. Ng3
{[%clk 0:00:45.2]} 25... Bc8 {[%clk 0:02:08]} 26. Bd2 {[%clk 0:00:42.5]} 26...
h5 {[%clk 0:02:08]} 27. Ne2 {[%clk 0:00:35]} 27... Bf5 {[%clk 0:02:06]} 28. Nc3
{[%clk 0:00:34.8]} 28... c6 {[%clk 0:02:05.2]} 29. Rf1 {[%clk 0:00:29]} 29... h4
{[%clk 0:02:04.5]} 30. Rfe1 {[%clk 0:00:25.8]} 30... b5 {[%clk 0:02:04]} 31. Ne2
{[%clk 0:00:24.1]} 31... Ba3 {[%clk 0:01:54.5]} 32. Kf2 {[%clk 0:00:19.4]} 32...
Kg6 {[%clk 0:01:53.9]} 33. Rg1 {[%clk 0:00:18.9]} 33... Kh5 {[%clk 0:01:53.9]}
34. Bh1 {[%clk 0:00:18.8]} 34... Be4 {[%clk 0:01:54]} 35. Nc3 {[%clk 0:00:18.1]}
35... Bxh1 {[%clk 0:01:53.8]} 36. Rxh1 {[%clk 0:00:18.9]} 36... Bb4 {[%clk
0:01:53]} 37. Ne2 {[%clk 0:00:01.8]} 37... Ne4+ {[%clk 0:01:52.9]} 0-1

[Event "Early-Titled-Tuesday-Blitz-July-09-2024"]
[Site "Chess.com"]
[Date "2024.07.09"]
[Round "7"]
[White "BogdanDeac"]
[Black "Bykov_Egor"]
[Result "1-0"]
[WhiteElo "3002"]
[BlackElo "2683"]
[TimeControl "180+1"]
[EndTime "9:18:15 PDT"]
[Termination "BogdanDeac won on time"]

1. Nf3 {[%clk 0:03:00.9]} 1... Nf6 {[%clk 0:02:58.5]} 2. c4 {[%clk 0:03:00.1]}
2... e6 {[%clk 0:02:57.1]} 3. g3 {[%clk 0:02:52.3]} 3... d5 {[%clk 0:02:54.3]}
4. Bg2 {[%clk 0:02:52.5]} 4... dxc4 {[%clk 0:02:45.9]} 5. Qa4+ {[%clk
0:02:51.6]} 5... Nbd7 {[%clk 0:02:45.8]} 6. Qxc4 {[%clk 0:02:51.5]} 6... a6
{[%clk 0:02:46.4]} 7. Qc2 {[%clk 0:02:51.4]} 7... Rb8 {[%clk 0:02:17.1]} 8. d4
{[%clk 0:02:35.8]} 8... b5 {[%clk 0:02:15.5]} 9. Bf4 {[%clk 0:02:35.7]} 9... Bd6
{[%clk 0:01:56.6]} 10. Ne5 {[%clk 0:02:32.1]} 10... Bxe5 {[%clk 0:01:44.3]} 11.
dxe5 {[%clk 0:02:30.9]} 11... Nh5 {[%clk 0:01:33.1]} 12. Be3 {[%clk 0:02:22.5]}
12... Nxe5 {[%clk 0:01:19.7]} 13. O-O {[%clk 0:02:20.4]} 13... Nf6 {[%clk
0:00:46.3]} 14. Ba7 {[%clk 0:01:42.2]} 14... Rb7 {[%clk 0:00:31.1]} 15. Rd1
{[%clk 0:01:40.1]} 15... Nd5 {[%clk 0:00:14.9]} 16. Bd4 {[%clk 0:01:36.1]} 16...
f6 {[%clk 0:00:06.1]} 17. Bxe5 {[%clk 0:01:35.2]} 17... fxe5 {[%clk 0:00:07]}
18. e4 {[%clk 0:01:35.5]} 18... O-O {[%clk 0:00:06]} 19. exd5 {[%clk 0:01:35.4]}
19... Rb6 {[%clk 0:00:05.3]} 20. dxe6 {[%clk 0:01:33.9]} 20... Qf6 {[%clk
0:00:06]} 21. Nc3 {[%clk 0:01:32]} 21... Rxe6 {[%clk 0:00:03.6]} 22. Ne4 {[%clk
0:01:29.4]} 22... Qg6 {[%clk 0:00:02.5]} 23. Qxc7 {[%clk 0:01:28.9]} 23... Kh8
{[%clk 0:00:02.1]} 24. Rac1 {[%clk 0:01:28.2]} 24... Ree8 {[%clk 0:00:01.6]} 25.
Nd6 {[%clk 0:01:27.7]} 1-0

[Event "Early-Titled-Tuesday-Blitz-July-09-2024"]
[Site "Chess.com"]
[Date "2024.07.09"]
[Round "7"]
[White "Nekoo04"]
[Black "Lady_Nika"]
[Result "1/2-1/2"]
[WhiteElo "2382"]
[BlackElo "2518"]
[TimeControl "180+1"]
[EndTime "9:18:18 PDT"]
[Termination "Game drawn by repetition"]

1. Nf3 {[%clk 0:03:00.9]} 1... d5 {[%clk 0:02:59.1]} 2. g3 {[%clk 0:03:01.5]}
2... Nf6 {[%clk 0:02:57.5]} 3. Bg2 {[%clk 0:03:02.1]} 3... g6 {[%clk 0:02:57.7]}
4. O-O {[%clk 0:03:02.4]} 4... Bg7 {[%clk 0:02:58.1]} 5. d4 {[%clk 0:03:03.3]}
5... O-O {[%clk 0:02:57.5]} 6. c4 {[%clk 0:03:04.2]} 6... c6 {[%clk 0:02:57.5]}
7. cxd5 {[%clk 0:03:03.9]} 7... cxd5 {[%clk 0:02:57.7]} 8. Ne5 {[%clk
0:03:04.6]} 8... Nc6 {[%clk 0:02:58.1]} 9. Nc3 {[%clk 0:03:05.2]} 9... e6 {[%clk
0:02:44.5]} 10. Nxc6 {[%clk 0:03:02.8]} 10... bxc6 {[%clk 0:02:45.4]} 11. Na4
{[%clk 0:03:03.4]} 11... Nd7 {[%clk 0:02:41.2]} 12. Be3 {[%clk 0:03:01.6]} 12...
a5 {[%clk 0:02:40.2]} 13. Rc1 {[%clk 0:03:02]} 13... Qc7 {[%clk 0:02:30.7]} 14.
b3 {[%clk 0:02:59.7]} 14... Ba6 {[%clk 0:02:30.5]} 15. Nc5 {[%clk 0:02:57.5]}
15... Nxc5 {[%clk 0:02:30.4]} 16. Rxc5 {[%clk 0:02:58.4]} 16... Rfc8 {[%clk
0:02:30.7]} 17. Bf3 {[%clk 0:02:54.4]} 17... Bf8 {[%clk 0:02:30.6]} 18. Rc2
{[%clk 0:02:55]} 18... Qb6 {[%clk 0:02:17.9]} 19. h4 {[%clk 0:02:53.4]} 19... a4
{[%clk 0:02:10]} 20. bxa4 {[%clk 0:02:52.7]} 20... Bc4 {[%clk 0:02:10]} 21. h5
{[%clk 0:02:48]} 21... Rxa4 {[%clk 0:02:07.3]} 22. hxg6 {[%clk 0:02:45.3]} 22...
hxg6 {[%clk 0:02:06.4]} 23. Qd2 {[%clk 0:02:42.1]} 23... Bb4 {[%clk 0:02:00.3]}
24. Qc1 {[%clk 0:02:40.3]} 24... Qa6 {[%clk 0:01:55.4]} 25. Kg2 {[%clk
0:02:38.6]} 25... Rxa2 {[%clk 0:01:52.6]} 26. Rxa2 {[%clk 0:02:38.1]} 26... Qxa2
{[%clk 0:01:52.7]} 27. Qd1 {[%clk 0:02:35.2]} 27... Kg7 {[%clk 0:01:45.7]} 28.
Rh1 {[%clk 0:02:34.7]} 28... Rh8 {[%clk 0:01:40.8]} 29. Rxh8 {[%clk 0:02:34.1]}
29... Kxh8 {[%clk 0:01:41.1]} 30. Qh1+ {[%clk 0:02:34.7]} 30... Kg8 {[%clk
0:01:41.7]} 31. Qh4 {[%clk 0:02:26.8]} 31... Bxe2 {[%clk 0:01:30.5]} 32. Bxe2
{[%clk 0:02:25.8]} 32... Qxe2 {[%clk 0:01:30.2]} 33. Qf6 {[%clk 0:02:26.2]}
33... Bf8 {[%clk 0:01:26.3]} 34. Qd8 {[%clk 0:02:22.6]} 34... Qh5 {[%clk
0:01:20.1]} 35. Bf4 {[%clk 0:02:20.6]} 35... Qh8 {[%clk 0:00:46.1]} 36. Bd6
{[%clk 0:02:17.6]} 36... Qg7 {[%clk 0:00:45.2]} 37. Be5 {[%clk 0:02:14.1]} 37...
Qh6 {[%clk 0:00:35.6]} 38. Bd6 {[%clk 0:02:13.8]} 38... Qg7 {[%clk 0:00:22.5]}
39. Be5 {[%clk 0:02:13.2]} 39... Qh6 {[%clk 0:00:05.5]} 40. Bd6 {[%clk
0:02:12.9]} 40... Qg7 {[%clk 0:00:03.4]} 1/2-1/2